bitfinex-derivatives/quotes_SOLF0:USTF0_20250310
["timestamp","ask_amount","ask_price","bid_price","bid_amount"]
[1741567573065,259.0,127.57,127.41,52.44315608]
[1741567573269,11.8416,127.52,127.41,52.44315608]
[1741567573460,3.999,127.52,127.41,52.44315608]
[1741567573863,94.38315608,127.51,127.38,52.44315608]
[1741567574258,52.44315608,127.48,127.43,0.05996278]
[1741567574569,52.44315608,127.45,127.35,258.98]
[1741567574773,4.0095,127.44,127.35,258.98]
[1741567575066,52.44315608,127.5,127.4,52.44315608]
[1741567575366,3.999,127.52,127.41,41.98]
[1741567575367,4.0095,127.51,127.41,41.98]
[1741567575768,0.05617567,127.46,127.44,0.05797897]
[1741567576159,41.92,127.48,127.44,0.05797897]
[1741567576375,7.8483,127.43,127.38,49.771]
[1741567576577,7.8483,127.43,127.38,41.92]
[1741567576872,7.8491,127.42,127.38,41.92]
[1741567577075,41.86,127.44,127.35,258.98]
[1741567577269,52.44315608,127.42,127.31,33.23632958]
[1741567577477,4.14565543,127.41,127.38,0.05397694]
[1741567577674,41.86,127.4,127.31,33.23632958]
[1741567577970,41.86,127.4,127.31,32.47472969]
[1741567578174,4.0949,127.41,127.31,84.91788577]
[1741567578377,56.53805608,127.41,127.31,32.47472969]
[1741567578677,52.44315608,127.38,127.32,32.47472969]
[1741567578873,41.90039815,127.37,127.35,0.05427251]
[1741567579077,41.90039815,127.37,127.32,32.47472969]
[1741567579275,0.06039815,127.37,127.32,32.47472969]
[1741567579674,4.1871,127.43,127.35,52.44315608]
[1741567579877,41.82,127.48,127.38,52.44315608]
[1741567580273,4.035,127.49,127.41,52.44315608]
[1741567580572,4.035,127.49,127.42,41.8]
[1741567580874,41.8,127.52,127.42,41.8]
[1741567581083,41.8,127.52,127.44,52.4980767]
[1741567581477,4.035,127.55,127.44,52.44315608]
[1741567581478,45.735,127.55,127.44,52.44315608]
[1741567581873,45.735,127.55,127.42,41.8]
[1741567582073,52.44315608,127.53,127.42,41.8]
[1741567582270,0.05498904,127.5,127.47,0.0537925]
[1741567582477,0.05498904,127.5,127.41,41.64]
[1741567582774,52.44315608,127.5,127.42,119.07400886]
[1741567583080,52.44315608,127.53,127.42,160.67400886]
[1741567583280,52.44315608,127.5,127.42,119.07400886]
[1741567583575,0.05646843,127.47,127.45,0.05357725]
[1741567583775,0.05646843,127.47,127.42,119.07400886]
[1741567584178,7.8471,127.45,127.42,119.07400886]
[1741567584377,4.2074,127.46,127.42,119.07400886]
[1741567584674,4.2074,127.46,127.42,0.8419734]
[1741567584675,7.848,127.43,127.42,0.8419734]
[1741567584871,52.44315608,127.44,127.4,129.19051472]
[1741567584872,52.44315608,127.44,127.43,3.677e-05]
[1741567585182,56.36315608,127.44,127.4,116.49631472]
[1741567585380,56.36315608,127.44,127.41,71.20269739]
[1741567585574,108.80631216,127.44,127.41,9.739e-05]
[1741567585774,7.8486,127.42,127.41,9.739e-05]
[1741567586180,3.92,127.42,127.4,209.11740597]
[1741567586383,41.6,127.41,127.4,209.11740597]
[1741567586881,105.81245608,127.41,127.4,147.63990597]
[1741567587078,49.4493,127.41,127.4,147.63990597]
[1741567587280,7.8488,127.42,127.4,147.63990597]
[1741567587484,0.05851825,127.43,127.4,147.63990597]
[1741567587686,52.44315608,127.41,127.4,90.67760597]
[1741567587888,60.29245608,127.41,127.4,66.73830597]
[1741567588178,64.21245608,127.41,127.39,296.57841704]
[1741567588384,41.68,127.4,127.22,1.36650109]
[1741567588586,52.44315608,127.38,127.22,1.36650109]
[1741567588883,52.44315608,127.38,127.32,7.8543]
[1741567589085,52.44315608,127.38,127.27,98.08575608]
[1741567589284,52.44315608,127.35,127.27,3.9826]
[1741567589485,7.854,127.34,127.32,0.05735802]
[1741567589686,94.11751143,127.35,127.32,0.05735802]
[1741567589979,0.05435535,127.35,127.32,0.05735802]
[1741567590381,97.85436175,127.34,127.32,0.05735802]
[1741567590581,97.85436175,127.34,127.33,7.8542]
[1741567590776,52.44315608,127.56,127.32,94.1005141]
[1741567590978,9.61650829,127.36,127.32,353.04315608]
[1741567591185,5.2e-05,127.36,127.32,356.96315608]
[1741567591380,52.44315608,127.5,127.35,52.44315608]
[1741567591576,60.28725608,127.5,127.45,7.8467]
[1741567591782,52.44315608,127.47,127.33,41.74]
[1741567591982,52.44315608,127.44,127.33,41.74]
[1741567592183,7.8487,127.42,127.39,0.05547072]
[1741567592378,0.05083263,127.4,127.29,98.36915608]
[1741567592578,52.44315608,127.38,127.29,4.126]
[1741567592789,41.8,127.38,127.29,4.126]
[1741567592989,41.8,127.41,127.3,41.82]
[1741567593384,52.44315608,127.4,127.3,41.82]
[1741567593578,0.05630978,127.37,127.34,0.05868738]
[1741567593880,9.78e-06,127.37,127.36,7.8523]
[1741567594588,9.78e-06,127.37,127.36,11.7723]
[1741567595887,52.44315608,127.53,127.36,56.36315608]
[1741567596087,41.66,127.52,127.42,52.44315608]
[1741567596279,52.44315608,127.51,127.39,52.44315608]
[1741567596585,52.44315608,127.51,127.39,94.10315608]
[1741567596791,41.66,127.52,127.42,52.44315608]
[1741567596980,41.66,127.52,127.43,4.2061]
[1741567597185,0.05425619,127.48,127.46,0.05819934]
[1741567597384,0.05425619,127.48,127.39,45.8261]
[1741567597588,94.06315608,127.5,127.39,45.8261]
[1741567597981,52.44315608,127.47,127.36,218.98699738]
[1741567598184,52.44315608,127.44,127.36,173.25399738]
[1741567598389,7.8516,127.38,127.36,173.25399738]
[1741567598593,7.8516,127.38,127.37,55.44127916]
[1741567598784,52.44315608,127.38,127.36,250.31035673]
[1741567598981,7.8517,127.37,127.36,160.99905673]
[1741567599487,52.44315608,127.38,127.36,148.14185673]
[1741567599693,108.80631216,127.38,127.36,72.20935673]
[1741567600081,52.44315608,127.38,127.36,72.20935673]
[1741567600286,0.05833621,127.39,127.36,72.20935673]
[1741567600686,41.73833621,127.39,127.36,72.20935673]
[1741567600986,7.8517,127.37,127.36,72.20935673]
[1741567601187,7.8517,127.37,127.36,60.27865673]
[1741567601384,11.7717,127.37,127.36,60.27865673]
[1741567601592,94.18149229,127.39,127.36,60.27865673]
[1741567602092,94.18149229,127.39,127.36,0.04959429]
[1741567602693,41.73833621,127.39,127.36,0.04959429]
[1741567602885,0.05833621,127.39,127.36,0.04959429]
[1741567603695,94.00315608,127.38,127.36,0.04959429]
[1741567603889,49.5517,127.37,127.36,0.04959429]
[1741567604291,53.4717,127.37,127.36,9.429e-05]
[1741567605790,11.7717,127.37,127.36,9.429e-05]
[1741567605995,53.3917,127.37,127.36,9.429e-05]
[1741567606193,414.26072842,127.37,127.21,53.6754]
[1741567606397,52.44315608,127.31,127.24,7.8596]
[1741567606591,94.02315608,127.31,127.24,7.8596]
[1741567606791,41.58,127.31,127.21,12.0954]
[1741567606997,52.44315608,127.28,127.21,7.885]
[1741567607186,52.44315608,127.25,127.17,4.1518]
[1741567607390,41.56,127.27,127.15,41.56]
[1741567607391,52.44315608,127.22,127.15,15.8795]
[1741567607592,41.56,127.21,127.15,8.0144]
[1741567607792,41.56,127.21,127.17,0.05866772]
[1741567607992,0.05713566,127.19,127.17,0.05866772]
[1741567608395,41.54,127.24,127.19,7.8623]
[1741567608801,0.05327691,127.23,127.15,49.5144]
[1741567609092,41.54,127.24,127.22,7.861]
[1741567609300,41.54,127.24,127.2,0.05527621]
[1741567609301,32.41924878,127.27,127.2,0.05527621]
[1741567609496,0.06048818,127.24,127.2,4.20707621]
[1741567609691,10.79523721,127.27,127.2,4.20707621]
[1741567609999,10.79523721,127.27,127.25,7.8587]
[1741567610205,10.79523721,127.27,127.2,4.20707621]
[1741567610503,10.79523721,127.27,127.2,4.1518]
[1741567610893,0.05556805,127.25,127.22,0.0555582]
[1741567611312,52.44315608,127.24,127.22,0.0555582]
[1741567612216,0.05556805,127.25,127.22,0.0555582]
[1741567612616,0.05556805,127.25,127.23,7.86]
[1741567612912,0.05556805,127.25,127.22,0.0555582]
[1741567613308,0.05556805,127.25,127.24,7.8597]
[1741567614110,41.48,127.29,127.22,0.0555582]
[1741567615111,52.44315608,127.27,127.22,0.0555582]
[1741567615306,52.44315608,127.24,127.22,0.0555582]
[1741567615615,41.44,127.23,127.22,0.0555582]
[1741567616815,0.05056617,127.24,127.22,0.0555582]
[1741567617011,101.68355608,127.23,127.22,0.0555582]
[1741567617412,93.82315608,127.23,127.22,0.0555582]
[1741567617615,41.38,127.23,127.22,0.0555582]
[1741567618118,49.2404,127.23,127.22,0.0555582]
[1741567618919,53.1804,127.23,127.22,5.82e-05]
[1741567619113,105.62355608,127.23,127.22,5.82e-05]
[1741567619818,168.30275495,127.23,127.22,5.82e-05]
[1741567620018,62.67919887,127.23,127.15,8.0144]
[1741567620221,156.26235495,127.23,127.15,8.0144]
[1741567620613,7.8618,127.21,127.16,7.8645]
[1741567620914,191.66132787,127.23,127.15,49.1344]
[1741567621114,150.52132787,127.23,127.15,49.1344]
[1741567621320,0.05046294,127.2,127.17,0.05280558]
[1741567621513,150.52132787,127.23,127.17,0.05280558]
[1741567622122,60.30665608,127.18,127.17,0.05280558]
[1741567622415,93.60315608,127.18,127.07,259.36]
[1741567622823,52.44315608,127.16,127.07,259.36]
[1741567623427,0.05704837,127.13,127.1,0.05077592]
[1741567623922,52.50020445,127.13,127.1,0.05077592]
[1741567624116,0.05704837,127.13,127.1,0.05077592]
[1741567624517,52.50020445,127.13,127.1,0.05077592]
[1741567625321,7.8716,127.05,126.96,52.44315608]
[1741567625525,41.22,127.06,126.98,15.8692]
[1741567625716,52.44315608,127.04,126.98,7.9934]
[1741567625915,52.44315608,127.04,126.92,52.44315608]
[1741567625916,52.44315608,127.04,126.88,259.42]
[1741567626115,52.44315608,127.04,126.93,3.9733]
[1741567626116,52.44315608,127.01,126.93,3.9733]
[1741567626325,52.44315608,127.02,126.93,3.9733]
[1741567626518,0.0510607,126.98,126.96,0.05823052]
[1741567626825,52.44315608,127.04,126.93,56.41645608]
[1741567627122,52.44315608,127.01,126.93,3.9733]
[1741567627321,41.32,127.0,126.93,3.9733]
[1741567627519,52.44315608,126.99,126.89,41.32]
[1741567627718,52.44315608,126.96,126.88,7.6774]
[1741567627918,52.44315608,126.93,126.88,7.6774]
[1741567628119,41.39448712,126.95,126.88,7.6774]
[1741567628313,52.44315608,126.99,126.91,0.0526967]
[1741567628516,0.05181158,126.93,126.91,0.0526967]
[1741567628721,0.05181158,126.93,126.88,7.6774]
[1741567629020,0.05012429,126.92,126.91,0.04976908]
[1741567629226,52.44315608,127.02,126.91,353.47292516]
[1741567629525,52.44315608,127.05,126.91,300.98]
[1741567629722,127.87133009,127.06,126.93,52.44315608]
[1741567629922,76.92814959,126.95,126.91,300.98]
[1741567630222,57.83254959,126.95,126.91,289.1298239]
[1741567630426,86.45133009,126.97,126.92,0.05940558]
[1741567630628,123.66228543,126.98,126.92,0.05940558]
[1741567630826,52.44315608,127.02,126.92,0.05940558]
[1741567631027,52.44315608,126.99,126.92,0.05940558]
[1741567631324,41.44,127.01,126.91,259.56]
[1741567631720,41.44,127.01,126.89,41.46]
[1741567631721,60.36917407,126.97,126.89,49.3413]
[1741567631926,93.95267407,126.97,126.89,41.46]
[1741567632126,93.90315608,126.97,126.89,41.46]
[1741567632428,52.44315608,126.94,126.86,41.42]
[1741567632927,0.0517518,126.91,126.89,0.0559423]
[1741567633226,52.49490788,126.91,126.78,93.80315608]
[1741567633525,52.44315608,126.91,126.79,41.36]
[1741567633725,41.36,126.93,126.82,52.44315608]
[1741567633923,93.80315608,126.93,126.83,41.36]
[1741567634326,0.05723214,126.89,126.87,0.05245204]
[1741567634721,4.0416,127.0,126.87,97.81560812]
[1741567634920,4.0416,127.0,126.87,93.87560812]
[1741567635123,4.0416,127.0,126.9,52.44315608]
[1741567635329,4.1975,127.01,126.91,41.38]
[1741567635631,41.38,127.05,126.93,52.44315608]
[1741567635826,93.82315608,127.05,126.95,0.05098231]
[1741567636025,4.0416,127.07,127.0,7.8745]
[1741567636227,41.34,127.06,126.95,41.36]
[1741567636925,52.44315608,127.01,126.92,263.7371]
[1741567637231,45.5441,127.0,126.92,3.9971]
[1741567637431,41.36,127.03,126.92,97.80025608]
[1741567637627,41.36,127.03,126.95,52.44315608]
[1741567638026,41.34,127.06,126.96,41.34]
[1741567638533,0.04979656,127.02,127.0,0.05431613]
[1741567638734,41.36979656,127.02,127.0,0.05431613]
[1741567639033,0.04979656,127.02,127.0,0.05431613]
[1741567639727,9.656e-05,127.02,127.0,0.05431613]
[1741567639932,9.656e-05,127.02,127.01,49.154]
[1741567640326,4.2135,127.17,127.01,101.72445608]
[1741567640628,4.2135,127.17,127.07,52.44315608]
[1741567640834,4.2135,127.17,127.07,93.76315608]
[1741567641034,7.8664,127.14,127.09,7.8689]
[1741567641221,4.2135,127.17,127.07,93.76315608]
[1741567641429,0.0594036,127.13,127.1,0.0555017]
[1741567642031,52.44315608,127.12,127.01,4.0613]
[1741567642332,52.44315608,127.09,127.01,11.9351]
[1741567642530,52.44315608,127.06,126.97,41.26]
[1741567642732,52.44315608,127.06,126.96,259.72]
[1741567642933,3.8812,127.05,126.96,259.72]
[1741567643129,41.22,127.04,126.96,259.72]
[1741567643329,0.05570813,127.02,127.0,0.05465446]
[1741567643533,0.05570813,127.02,126.92,3.9505]
[1741567643932,52.44315608,127.0,126.92,3.9505]
[1741567644138,41.22,126.99,126.92,3.9505]
[1741567644533,3.8812,127.05,126.95,52.44315608]
[1741567644734,4.0633,127.07,126.98,52.44315608]
[1741567645333,261.12997087,127.18,127.01,52.44315608]
[1741567645537,128.05418794,127.09,127.04,52.44315608]
[1741567645938,115.20394091,127.09,127.08,7.8696]
[1741567646236,109.09314091,127.09,127.08,7.8696]
[1741567646438,109.09314091,127.09,127.07,41.28]
[1741567646836,96.66714091,127.09,127.07,41.28]
[1741567647035,96.66714091,127.09,127.08,7.8696]
[1741567647342,96.66714091,127.09,127.05,0.05403938]
[1741567647343,84.64014091,127.09,127.05,0.05403938]
[1741567647934,92.50964091,127.09,127.05,0.05403938]
[1741567648241,216.1827137,127.1,127.05,0.05403938]
[1741567648242,41.31438848,127.1,127.05,0.05403938]
[1741567648442,7.8709,127.06,127.05,0.05403938]
[1741567648636,64.54495608,127.09,127.05,0.05403938]
[1741567648834,41.26,127.1,127.05,0.05403938]
[1741567649031,0.05529182,127.08,127.05,0.05403938]
[1741567649343,52.44315608,127.08,126.99,259.76]
[1741567649643,0.05525918,127.08,127.05,0.05596147]
[1741567649840,41.3,127.16,127.05,93.74315608]
[1741567650143,0.06017063,127.08,127.02,52.44315608]
[1741567650334,52.44315608,127.14,127.02,52.44315608]
[1741567650536,7.8657,127.15,127.1,7.8679]
[1741567650735,41.3,127.16,127.09,0.05886887]
[1741567650937,0.05814895,127.14,127.07,41.32]
[1741567651135,0.05814895,127.14,127.11,0.05304732]
[1741567652342,7.8671,127.13,127.11,0.05304732]
[1741567652633,0.05814895,127.14,127.11,0.05304732]
[1741567654642,7.8672,127.12,127.11,0.05304732]
[1741567654838,7.8672,127.12,127.07,300.76]
[1741567654839,0.05814895,127.14,127.07,259.68]
[1741567655039,52.44315608,127.12,127.04,7.8719]
[1741567655241,52.44315608,127.12,127.01,259.64]
[1741567655242,45.0893,127.11,127.01,300.72]
[1741567655452,97.53245608,127.11,127.01,300.72]
[1741567655637,97.53245608,127.11,127.02,7.8729]
[1741567655844,45.0893,127.11,127.01,300.72]
[1741567656143,0.05081882,127.08,127.07,7.8703]
[1741567656545,1.882e-05,127.08,127.07,7.8703]
[1741567656740,1.882e-05,127.08,127.07,11.8103]
[1741567656939,1.882e-05,127.08,127.07,64.25345608]
[1741567658248,1.882e-05,127.08,127.07,60.31345608]
[1741567658443,1.882e-05,127.08,127.07,11.8103]
[1741567659447,1.882e-05,127.08,127.07,7.8703]
[1741567659648,1.882e-05,127.08,127.07,11.8103]
[1741567660547,1.882e-05,127.08,127.07,256.25345608]
[1741567660743,12.1675,127.23,127.07,248.38315608]
[1741567660944,7.954,127.23,127.15,52.44315608]
[1741567661143,7.954,127.23,127.15,93.28315608]
[1741567661541,89.94308804,127.28,127.18,52.44315608]
[1741567661847,1.907e-05,127.24,127.22,0.05118331]
[1741567662238,1.907e-05,127.24,127.23,7.8604]
[1741567662442,1.907e-05,127.24,127.23,48.7404]
[1741567662943,1.907e-05,127.24,127.22,0.05118331]
[1741567663746,1.907e-05,127.24,127.23,52.44315608]
[1741567663948,1.907e-05,127.24,127.22,0.05118331]
[1741567667746,1.907e-05,127.24,127.22,7.91208331]
[1741567667950,1.907e-05,127.24,127.22,0.05118331]
[1741567669057,7.86021907,127.24,127.22,0.05118331]
[1741567669358,1.907e-05,127.24,127.22,0.05118331]
[1741567669860,7.8604,127.23,127.22,0.05118331]
[1741567670057,52.44315608,127.23,127.15,259.44]
[1741567670254,7.8641,127.17,127.13,7.866]
[1741567670454,40.58,127.19,127.11,40.58]
[1741567670750,7.8663,127.14,127.1,7.8683]
[1741567671054,0.06026572,127.13,127.11,0.05605659]
[1741567671255,0.06026572,127.13,127.12,7.8672]
[1741567671456,48.2599,127.19,127.1,40.52]
[1741567671655,0.05744537,127.14,127.11,0.05304288]
[1741567671855,4.537e-05,127.14,127.11,52.49619896]
[1741567672055,4.537e-05,127.14,127.13,7.8665]
[1741567672462,4.537e-05,127.14,127.13,11.8065]
[1741567672763,4.537e-05,127.14,127.13,7.8665]
[1741567672957,4.537e-05,127.14,127.13,11.8065]
[1741567673154,4.537e-05,127.14,127.13,7.8665]
[1741567673351,4.537e-05,127.14,127.13,11.8065]
[1741567674467,4.537e-05,127.14,127.13,203.8065]
[1741567674658,4.537e-05,127.14,127.13,256.24965608]
[1741567675263,4.537e-05,127.14,127.13,203.8065]
[1741567675463,4.537e-05,127.14,127.13,7.8665]
[1741567675970,4.537e-05,127.14,127.13,48.1865]
[1741567676265,4.537e-05,127.14,127.13,11.8065]
[1741567677664,3.8935,127.28,127.18,52.44315608]
[1741567677866,3.8935,127.28,127.21,52.44315608]
[1741567678258,3.8935,127.28,127.25,7.8587]
[1741567678461,3.8935,127.28,127.19,299.7]
[1741567678656,0.05334282,127.26,127.23,0.05554107]
[1741567679271,0.05334282,127.26,127.21,7.8614]
[1741567679471,0.05334282,127.26,127.19,299.62]
[1741567680268,40.15334282,127.26,127.19,299.62]
[1741567680569,40.15334282,127.26,127.21,0.05145775]
[1741567680770,0.05334282,127.26,127.21,0.05145775]
[1741567681469,0.05334282,127.26,127.25,7.8591]
[1741567681658,0.05334282,127.26,127.2,52.44315608]
[1741567681863,0.05334282,127.26,127.24,0.05490816]
[1741567682063,0.05334282,127.26,127.19,299.62]
[1741567682269,0.05334282,127.26,127.24,0.05528338]
[1741567682466,0.05334282,127.26,127.25,7.8591]
[1741567682664,0.05334282,127.26,127.23,40.12]
[1741567682665,0.05334282,127.26,127.24,40.17281]
[1741567682969,0.05334282,127.26,127.24,0.05281]
[1741567683471,4.282e-05,127.26,127.25,7.8591]
[1741567683664,32.26191687,127.36,127.25,144.98631216]
[1741567683867,32.26191687,127.36,127.29,52.44315608]
[1741567684065,32.26191687,127.36,127.29,40.26]
[1741567684258,52.44315608,127.35,127.28,259.36]
[1741567684464,56.26535608,127.35,127.28,259.36]
[1741567684664,52.44315608,127.32,127.23,40.2]
[1741567684865,92.64315608,127.32,127.23,40.2]
[1741567685065,52.44315608,127.29,127.2,40.2]
[1741567685265,7.8592,127.25,127.16,299.6]
[1741567685471,52.44315608,127.26,127.16,299.6]
[1741567685862,7.8604,127.23,127.16,299.6]
[1741567686067,0.05677537,127.22,127.2,0.05950441]
[1741567686267,0.05677537,127.22,127.16,259.36]
[1741567686465,7.8616,127.21,127.11,92.64315608]
[1741567686673,7.8362,127.2,127.11,92.64315608]
[1741567687067,7.8362,127.2,127.1,259.36]
[1741567687263,100.41935608,127.2,127.1,299.5]
[1741567687572,0.0588317,127.16,127.14,0.05795853]
[1741567688866,0.0588317,127.16,127.1,259.36]
[1741567690069,0.0588317,127.16,127.12,0.05665028]
[1741567692568,0.0588317,127.16,127.13,52.44315608]
[1741567692770,4.0959,127.25,127.13,52.44315608]
[1741567693071,3.9621,127.24,127.13,52.44315608]
[1741567693464,52.44315608,127.21,127.1,259.36]
[1741567693670,52.44315608,127.18,127.08,52.44315608]
[1741567693973,4.1477231,127.17,127.05,299.32]
[1741567694170,39.86,127.16,127.05,299.32]
[1741567694377,7.8692,127.09,127.05,299.32]
[1741567694674,39.84,127.11,127.05,259.44]
[1741567694975,3.9979,127.1,127.05,259.44]
[1741567695173,0.06036194,127.09,126.99,93.00659246]
[1741567695474,52.44315608,127.09,126.98,259.44]
[1741567695674,52.44315608,127.06,126.98,259.44]
[1741567695870,39.82,127.05,127.0,7.8745]
[1741567696070,4.07,127.08,126.99,39.8]
[1741567696377,0.05103382,127.05,127.02,0.05847138]
[1741567696576,7.9613,127.1,127.04,52.44315608]
[1741567696874,39.82,127.18,127.07,52.44315608]
[1741567697073,48.0715,127.18,127.08,39.82]
[1741567697477,52.44315608,127.15,127.02,244.44315608]
[1741567697674,39.8,127.14,127.02,52.44315608]
[1741567697873,39.8,127.14,127.07,0.05283876]
[1741567697874,0.05389649,127.1,127.07,0.05283876]
[1741567698072,39.85389649,127.1,127.07,0.05283876]
[1741567698276,39.85389649,127.1,127.01,299.3]
[1741567698473,8.4234,127.09,127.01,259.5]
[1741567698671,60.86655608,127.09,127.01,259.5]
[1741567699472,0.05405038,127.06,127.04,0.05310953]
[1741567699675,0.05405038,127.06,127.01,259.5]
[1741567699873,39.77405038,127.06,126.96,52.44315608]
[1741567700173,39.72,127.06,126.96,92.16315608]
[1741567700477,39.72,127.06,126.96,92.12315608]
[1741567700872,0.05012342,127.02,127.0,0.05222186]
[1741567701874,0.05012342,127.02,127.01,7.874]
[1741567702176,0.05012342,127.02,127.0,39.71222186]
[1741567702580,8.4234,127.09,127.01,52.44315608]
[1741567703777,0.05632177,127.06,127.04,0.05108027]
[1741567703984,2.177e-05,127.06,127.05,7.8715]
[1741567704483,2.177e-05,127.06,127.05,11.8115]
[1741567704683,2.177e-05,127.06,127.05,203.8115]
[1741567705879,2.177e-05,127.06,127.05,199.8715]
[1741567706388,2.177e-05,127.06,127.05,203.8115]
[1741567707580,2.177e-05,127.06,127.05,257.6999529]
[1741567707778,7.9286,127.17,127.05,249.8284529]
[1741567707974,7.9286,127.17,127.11,52.44315608]
[1741567708180,7.9286,127.17,127.12,39.66]
[1741567708878,7.9286,127.17,127.12,47.5269]
[1741567709079,0.05939937,127.16,127.13,0.05134864]
[1741567709578,0.05939937,127.16,127.15,7.8653]
[1741567709785,9.937e-05,127.16,127.15,7.8653]
[1741567709973,9.937e-05,127.16,127.13,0.05134864]
[1741567710688,9.937e-05,127.16,127.15,7.8653]
[1741567713283,9.937e-05,127.16,127.15,11.8053]
[1741567713484,9.937e-05,127.16,127.15,7.8653]
[1741567715083,9.937e-05,127.16,127.15,64.24845608]
[1741567715287,4.1718,127.27,127.15,64.24845608]
[1741567715288,4.1718,127.27,127.15,56.38315608]
[1741567715488,3.923,127.31,127.26,7.8585]
[1741567715678,7.7993,127.31,127.22,39.18]
[1741567716084,7.7993,127.31,127.24,52.44315608]
[1741567716283,4.1399,127.33,127.24,52.44315608]
[1741567716479,4.1399,127.33,127.3,7.8556]
[1741567716683,4.1399,127.33,127.26,0.05449948]
[1741567716892,0.05098351,127.3,127.23,39.14]
[1741567717184,0.05098351,127.3,127.2,351.08315608]
[1741567717185,7.8567,127.29,127.2,351.08315608]
[1741567717389,7.6875,127.28,127.2,351.08315608]
[1741567717784,7.6875,127.28,127.2,298.64]
[1741567717985,7.6875,127.28,127.2,259.5]
[1741567718193,52.44315608,127.26,127.15,39.2787]
[1741567718490,39.13421431,127.25,127.23,0.06007496]
[1741567718683,39.13421431,127.25,127.17,52.44315608]
[1741567718684,39.08,127.25,127.17,52.44315608]
[1741567718884,39.13577448,127.25,127.23,0.05613468]
[1741567719086,39.13577448,127.25,127.17,52.44315608]
[1741567719087,7.6875,127.28,127.2,91.48315608]
[1741567719389,0.05338126,127.25,127.23,0.05612714]
[1741567719982,0.05338126,127.25,127.17,39.02]
[1741567720188,0.05338126,127.25,127.2,7.8618]
[1741567720398,7.8594,127.25,127.17,39.02]
[1741567720585,52.44315608,127.26,127.17,39.02]
[1741567720791,42.9055,127.25,127.17,46.8835]
[1741567720988,7.8609,127.23,127.17,39.02]
[1741567721196,0.05276289,127.22,127.2,0.05272307]
[1741567722689,0.05276289,127.22,127.21,7.8616]
[1741567723593,6.289e-05,127.22,127.21,7.8616]
[1741567723997,6.289e-05,127.22,127.2,0.05272307]
[1741567724693,6.289e-05,127.22,127.21,7.8616]
[1741567724889,6.289e-05,127.22,127.2,0.05272307]
[1741567725086,6.289e-05,127.22,127.21,7.8616]
[1741567727394,6.289e-05,127.22,127.2,0.05272307]
[1741567728497,7.8616,127.21,127.2,0.05272307]
[1741567728795,6.289e-05,127.22,127.2,0.05272307]
[1741567728990,6.289e-05,127.22,127.21,7.8616]
[1741567730398,6.289e-05,127.22,127.2,0.05272307]
[1741567730895,6.289e-05,127.22,127.21,7.8616]
[1741567732992,7.8616,127.21,127.2,0.05272307]
[1741567733193,38.48,127.21,127.14,259.42]
[1741567733392,42.3149,127.21,127.14,259.42]
[1741567733597,7.8623,127.2,127.14,259.42]
[1741567733793,7.8623,127.2,127.08,52.44315608]
[1741567733794,259.36,127.19,127.02,192.0]
[1741567733997,52.44315608,127.14,127.01,52.44315608]
[1741567734197,0.05769696,127.12,127.09,0.0543689]
[1741567734505,43.2857,127.13,127.01,53.81237232]
[1741567734802,7.8673,127.12,127.01,53.81237232]
[1741567734995,0.05815868,127.08,127.06,0.05790547]
[1741567736197,5.868e-05,127.08,127.06,0.05790547]
[1741567736397,5.868e-05,127.08,127.07,60.31345608]
[1741567736598,5.868e-05,127.08,127.07,99.35345608]
[1741567737302,5.868e-05,127.08,127.06,0.05790547]
[1741567738197,5.868e-05,127.08,127.07,7.8703]
[1741567739294,5.868e-05,127.08,127.07,46.8503]
[1741567740603,5.868e-05,127.08,127.06,7.92830547]
[1741567740898,7.8703,127.07,126.98,260.24356442]
[1741567741104,8.0722,127.06,127.02,7.8733]
[1741567741305,8.0722,127.06,126.98,260.24356442]
[1741567741796,38.92,127.05,126.98,259.48]
[1741567742102,0.05626369,127.03,127.01,0.05020821]
[1741567742906,6.369e-05,127.03,127.02,7.8734]
[1741567743599,6.369e-05,127.03,127.02,60.31655608]
[1741567743795,6.369e-05,127.03,127.02,64.25655608]
[1741567744195,6.369e-05,127.03,127.02,60.31655608]
[1741567744508,6.369e-05,127.03,127.02,7.8734]
[1741567745903,6.369e-05,127.03,127.02,64.25655608]
[1741567746106,6.369e-05,127.03,127.02,12.0836]
[1741567746501,6.369e-05,127.03,127.02,64.52675608]
[1741567746705,10.82967952,127.15,127.02,246.15907622]
[1741567746906,10.82967952,127.15,127.08,52.44315608]